[Event "Tata Steel-A 80th"]
[Site "Wijk aan Zee"]
[Date "2018.01.28"]
[Round "13"]
[White "Karjakin, Sergey"]
[Black "Carlsen, Magnus"]
[Result "1/2-1/2"]
[ECO "C88"]
[WhiteElo "2753"]
[BlackElo "2834"]
[Annotator "Fernandez,Daniel Howard"]
[PlyCount "67"]
[EventDate "2018.01.13"]
[EventType "tourn"]
[EventRounds "13"]
[EventCountry "NED"]
[EventCategory "20"]
[SourceTitle "CBM 183"]
[Source "ChessBase"]
[SourceDate "2018.03.14"]
[SourceVersion "1"]
[SourceVersionDate "2018.03.14"]
[SourceQuality "1"]
[TimeControl "40/6000+30:20/3000+30:900+30"]

1. e4 {[%emt 0:00:00]} e5 {[%emt 0:00:10]} 2. Nf3 {[%emt 0:00:00]} Nc6 {[%emt 0:00:04]} 3. Bb5 {[%emt 0:00:00]} a6 {[%emt 0:00:19]} 4. Ba4 {[%emt 0:00:00]} Nf6 {[%emt 0:00:05]} 5. O-O {[%emt 0:00:00]} Be7 {[%emt 0:00:08]} 6. Re1 {[%emt 0:00:00]} b5 {[%emt 0:00:10]} 7. Bb3 {[%emt 0:00:02]} O-O {[%emt 0:00:06]} 8. a4 {[%emt 0:00:07] No Breyer today.} b4 {[%emt 0:00:05]} (8... Bb7 {is more popular, but I have never understood the appeal of developing the bishop to a diagonal that will remain closed, in the case when the Breyeresque ...c5-c4 is still some moves off.} 9. d3 d6 10. Nc3 {is White's point; Black's queenside pawns will not be permitted to advance abreast. The best he might be able to do is} Na5 11. Ba2 b4 12. Ne2 c5 13. Ng3 g6 (13... Bc8 14. c3 Rb8 15. d4 $36 {Duda,J-Najer,E Czech Republic 2017}) 14. h3 {when White appears to have extra tempi in his kingside attack, compared to most systems with an early d3.}) (8... Rb8 {is slightly compliant: after} 9. axb5 axb5 10. c3 d6 11. d4 {Black lacks the usual recourse of ...a5 in the line} exd4 12. cxd4 Bg4 13. Be3 {so might have to make do with} d5 14. e5 Ne4 15. h3 Bh5 16. Nc3 $36 {; furthermore, 13.c3!? might be unexpectedly strong in spite of the doubled f-pawns.}) 9. d4 {[%emt 0:01:17]} (9. a5 d6 10. d3 Be6 11. Bxe6 fxe6 12. Nbd2 {led to a nice win for Magnus himself in Carlsen,M-Aronian,L Saint Louis 2017; one wonders where the improvement was?}) (9. d3 d6 10. Nbd2 Na5 11. Ba2 c5 12. c3 Rb8 {is now fine for Black, who has not wasted time on ...b7 unlike in the 8...b7 line.}) 9... d6 {[%emt 0:00:07]} 10. dxe5 {[%emt 0:00:05]} Nxe5 {[%emt 0:00:08]} 11. Nxe5 {[%emt 0:05:48]} (11. Nbd2 Ned7 $5 {was an unusual method of pressuring e4, but a successful one:} 12. Nd4 Bb7 13. c3 bxc3 14. bxc3 Nc5 15. Bc2 Re8 16. f3 Nfd7 17. a5 d5 $11 {Nakamura, H-Svidler,P Saint Louis 2017}) 11... dxe5 {[%emt 0:00:06]} 12. Qe2 {[%emt 0:00:04]} a5 {[%emt 0:00:49] Possibly still affected by his own experience on the White side, Carlsen decides to avoid White's a5-ideas.} (12... Bc5 {is of course fine immediately.}) 13. Nd2 {[%emt 0:10:03]} Bc5 {[%emt 0:01:05]} 14. Nf3 {[%emt 0:06:46]} ({RR} 14. h3 Bb7 15. Bc4 Qe7 16. Bd3 Rfd8 17. Nf3 h6 18. Nh4 Bc8 19. Qf3 Rb8 20. Bc4 Rb6 21. b3 Rbd6 22. Bb2 Rd2 23. Re2 Rxe2 24. Qxe2 Ng4 25. Nf5 Bxf5 26. hxg4 Be6 27. Bxe6 Qxe6 28. Rd1 Rd6 {Dominguez Perez,L (2763)-Ding,L (2805) Saint Louis 2019 ½-½}) 14... Qe7 $146 {[%emt 0:02:23]} ({RR} 14... Ng4 15. Bg5 Qd6 16. Bh4 Ba6 17. Qd2 Qxd2 {½-½ (17) Talibov,S (2423)-Suleymanli,A (2617) Baku AZE 2025}) 15. Be3 {[%emt 0:12:57]} Ba6 {[%emt 0:19:41]} 16. Bxc5 {[%emt 0:02:31]} Qxc5 {[%emt 0:00:04]} 17. Qe3 {[%emt 0:00:04]} Qxe3 {[%emt 0:00:52]} 18. Rxe3 {[%emt 0:00:01]} Rfe8 $11 {[%emt 0:02:35] Initially this position looked to me to be slightly nicer for White, but this isn't really the case. In fact, Black may have more ideas in the position, and in the long term has the better bishop, so it would not surprise me if he was vaguely thinking about winning here.} 19. c3 {[%emt 0:02:40]} (19. h3 c5 20. Rd1 c4 21. Ba2 Kf8 $132 {is hard to get enthused about from the White side, especially if we remember Adhiban-Carlsen from round 2.}) 19... Ng4 {[%emt 0:01:23]} 20. Ng5 {[%emt 0:06:14] Simplifying quickly lest he end up worse.} Nxe3 {[%emt 0:02:28]} 21. Bxf7+ {[%emt 0:00:14]} Kf8 {[%emt 0:00:06]} 22. Bxe8 {[%emt 0:00:43]} Rxe8 {[%emt 0:01:06]} 23. fxe3 {[%emt 0:00:07]} bxc3 {[%emt 0:01:57]} 24. bxc3 {[%emt 0:00:09]} h6 {[%emt 0:00:20]} 25. Nf3 {[%emt 0:00:55]} Bd3 {[%emt 0:01:30]} 26. Rd1 {[%emt 0:01:54]} Bxe4 {[%emt 0:00:07]} 27. Rd7 {[%emt 0:00:11] Continuing to force pieces off, because if White plays slowly the bishop will be superior.} Re7 {[%emt 0:03:06]} 28. Rd8+ {[%emt 0:00:23]} (28. Rxe7 Kxe7 29. Nxe5 Ke6 30. Nc4 Kd5 31. Nxa5 Bc2 {leads to an odd position where White is a pawn up but only he is taking risks.}) 28... Kf7 {[%emt 0:00:43]} 29. Nd2 {[%emt 0:00:41]} Bc6 {[%emt 0:00:19]} 30. Nc4 {[%emt 0:00:38]} Ke6 {[%emt 0:01:41]} 31. Nxa5 {[%emt 0:02:20]} Bxa4 {[%emt 0:00:07]} 32. Nb7 {[%emt 0:00:59]} Re8 {[%emt 0:03:30]} (32... Bd7 {might be a try if Black is desperate to play on.} 33. e4 (33. Nc5+ Kd6 34. Ne4+ Kc6 35. Kf2 Be8 $132) 33... Rf7 34. Nc5+ Kd6 35. Nd3 c5 $132 {Objectively this might be nothing for Black, and so there is no reason to go for it, especially if one has looked at Anish Giri's game and concluded he is unlikely to win.}) 33. Nc5+ {[%emt 0:00:14]} Kf6 {[%emt 0:00:28]} 34. Rxe8 $11 {[%emt 0:01:04] Unlike the previous note, here White gets to play a6 immediately, and thus seal up the whole position.} 1/2-1/2

[Event "GRENKE Chess Classic and Open 2024"]
[Site "Karlsruhe, Germany"]
[Date "2024.04.01"]
[Round "1"]
[White "Carlsen, Magnus"]
[Black "Rapport, Richard"]
[Result "1-0"]
[ECO "C18"]
[WhiteElo "2823"]
[BlackElo "2708"]
[Annotator "rafael"]
[PlyCount "101"]
[EventDate "2024.??.??"]
[TimeControl "2700+10"]

1. e4 e6 2. d4 d5 3. Nc3 Bb4 4. e5 c5 5. a3 Bxc3+ 6. bxc3 Ne7 7. Qg4 Qc7 8. Bd3 Qa5 {Rapport repeats the same variation from his game against Vachier-Lagrave, in which he achieved a good position from the opening.} 9. Bd2 c4 10. Be2 Rg8 11. a4 Nbc6 12. Qh3 {I suggested this move in my analysis of the above-mentioned game, but I thought Rapport's idea was to sacrifice the h-pawn.} (12. Nf3 {was the move played by Vachier-Lagrave.}) ({RR} 12. Nf3 Bd7 13. O-O h6 14. Rfb1 O-O-O 15. Rb5 Qc7 16. Qf4 g5 17. Qxf7 Nf5 18. g4 Rdf8 19. Qh5 Be8 20. Qh3 h5 21. Nxg5 hxg4 22. Bxg4 Qe7 23. f4 Rh8 24. Qg2 Nd8 25. Rbb1 Bg6 26. Rf1 Kb8 {Vachier Lagrave,M (2728)-Rapport,R (2720) Karlsruhe GER 2024 1-0 (70)}) 12... h6 $6 {[%c_effect h6;square;h6;type;Inaccuracy;persistent;true]} (12... Bd7 {This is a critical move and I had imagined that Rapport would play it.} 13. Qxh7 O-O-O {With the idea of playing f7-f6, with a complicated fight. Black has some compensation for the pawn in the form of better development and chances of attacking White's vulnerable queen.}) 13. Bh5 $146 {[%c_effect h5;square;h5;type;GreatFind;persistent;true] The bishop is placed on an active square, preventing Black from castling queenside and freeing the e2-square for the knight. If Black plays g7-g6, weaknesses on the dark squares are created.} ({RR} 13. Qf3 Bd7 14. Nh3 Rf8 15. Nf4 O-O-O 16. g4 f6 17. exf6 gxf6 18. Nh5 f5 19. Qe3 fxg4 20. Bxg4 e5 21. Bxd7+ Rxd7 22. Qxh6 Qd8 23. dxe5 Nxe5 24. O-O-O N7g6 25. Qe3 Qa5 26. f4 Qxa4 27. Qc5+ Nc6 {Janeczko,J (2282)-Sengupta,D (2497) Warsaw POL 2025 1-0 (41)}) 13... Bd7 14. Ne2 g6 {This move is ultimately a necessary evil, as it's the only way to castle.} (14... O-O-O $2 {[%c_effect c8;square;c8;type;Mistake;persistent;true]} 15. Bxf7) 15. Bg4 $1 {[%c_effect g4;square;g4;type;GreatFind;persistent;true] A curious move. Why didn't Carlsen immediately return the bishop to f3, as the vast majority of humanity would do $2 Playing such subtle moves is one of the many reasons why he is so special.} (15. Bf3 Rh8 {This is forced, since there's no other way to defend the pawn and h6-h5 is a much worse version for Black of what happens in the game. Maybe the point is that White's plan here is not as clear or effective as the possible plan with the bishop on g4.} 16. g4 $5 {[%c_effect g4;square;g4;type;Interesting;persistent;true] with the idea of Qg3 and then h4-h5.}) 15... h5 {White's previous move was designed to provoke this advance.} (15... Rh8 16. Qf3 {This is one difference from the bishop being on g4: White can use the third rank for the queen to go to either to g3 or f3, followed by the advance of the h-pawn.}) 16. Bf3 Nf5 $6 {[%c_effect f5;square;f5;type;Inaccuracy;persistent;true]} (16... O-O-O {is more accurate, although Black is still suffering after} 17. Bg5 {The dark squares are too vulnerable.}) 17. g4 $1 {[%c_effect g4;square;g4;type;GreatFind;persistent;true]} hxg4 18. Bxg4 O-O-O 19. Bxf5 $1 {[%c_effect f5;square;f5;type;GreatFind;persistent;true] Changing the strategic nature of the position is often difficult in chess, so the moves g4 and now Bxf5 may not be the easiest for many players. By looking at the board objectively, however, we can see that Black has a miserable position strategically: too many weaknesses on the dark squares and no active plan.} exf5 20. Bg5 Rde8 21. Kd2 $1 {[%c_effect d2;square;d2;type;GreatFind;persistent;true] The white king finds a surprisingly safe haven in the middle of the board. White's plan now is relatively simple: place the queen on f3 and advance the h-pawn.} Rh8 22. Qf3 {The bad light-squared bishop in the French Defense is once again one of the reasons for tragedy.} Nd8 $1 {[%c_effect d8;square;d8;type;GreatFind;persistent;true] The only chance is to activate the knight by the placing it on e6.} 23. Bf6 Rh6 24. h4 (24. Nf4 {is a possible alternative.} Ne6 $1 {[%c_effect e6;square;e6;type;GreatFind;persistent;true]} 25. Nxe6 $1 {[%c_effect e6;square;e6;type;GreatFind;persistent;true]} (25. Qxd5 {is less clear:} Qc7 $1 {[%c_effect c7;square;c7;type;GreatFind;persistent;true] This is what Black wants: some activity at the cost of a pawn, even though his position is still objectively worse.} (25... Qxd5 {is good for White after} 26. Nxd5 Bc6 27. Ne3 $1 {[%c_effect e3;square;e3;type;GreatFind;persistent;true]} Bxh1 28. Rxh1)) 25... Bxe6 26. h4 Rh5 27. Qd1 $1 {[%c_effect d1;square;d1;type;GreatFind;persistent;true] With the idea of playing Qc1-a3 and torturing Black for a long time on the dark squares.}) 24... Ne6 25. h5 $2 {[%c_effect h5;square;h5;type;Mistake;persistent;true] This sharpens the game, but it isn't the best.} (25. Qe3 Rh5 26. Nf4 Nxf4 27. Qxf4 {with advantage for White, similar to the one we saw after 24.Nf4. It should be pointed out that the rook on h5, although it is protecting the kingside, is shut out from the game.}) 25... g5 $1 {[%c_effect g5;square;g5;type;GreatFind;persistent;true]} 26. Rae1 $3 {[%c_effect e1;square;e1;type;Brilliant;persistent;true] This is another very difficult move that it's not easy to understand until we go deeper into the position. This type of move is much more beautiful than a simple combination, which is a pure mathematical question. Here, though, is the true art of chess: moves that can only be understood after much reflection and that involve a hidden idea to prevent an opponent's plan.} (26. Qxf5 $4 {[%c_effect f5;square;f5;type;Blunder;persistent;true] tragically loses the queen after} Nxd4 27. Qxg5 Nf3+) (26. Rag1 $2 {[%c_effect g1;square;g1;type;Mistake;persistent;true]} g4 27. Qe3 f4 $1 {[%c_effect f4;square;f4;type;GreatFind;persistent;true]} 28. Nxf4 Rxf6 $1 {[%c_effect f6;square;f6;type;GreatFind;persistent;true]} 29. exf6 Ng5 {In this line we can see the importance of the rook on e1.}) 26... f4 $2 {[%c_effect f4;square;f4;type;Mistake;persistent;true] The position is very difficult to play and it's hard for Black not to make a mistake.} (26... Qxa4 $2 {[%c_effect a4;square;a4;type;Mistake;persistent;true] Taking the pawn on a4 is clearly wrong:} 27. Ra1) (26... Bxa4 $2 {[%c_effect a4;square;a4;type;Mistake;persistent;true]} 27. Qxf5) (26... g4 $2 {[%c_effect g4;square;g4;type;Mistake;persistent;true] In this line we can understand the idea behind Carlsen's previous move.} 27. Qe3 f4 {This no longer works:} 28. Nxf4 Rxf6 29. exf6 Ng5 30. Qxe8+ {Thanks to the rook on e1, White wins two rooks and a pawn—the dangerous passed h-pawn, no less—for the queen. The true art of chess.}) (26... a6 $1 {[%c_effect a6;square;a6;type;GreatFind;persistent;true] This or 26...b6 are the best moves according to the computer. What can I say $2 Chess is not easy. 26...a6 I can understand: now it's possible to capture on a4 in some lines, since there's no more Ra1 capturing on a7. Apart from that, the king can march to a safer place with Kb8-a7. I apologize if that explanation was not convincing. The position remains very complicated and the evaluation is the one we expect (0.00).}) 27. Reg1 $1 {[%c_effect g1;square;g1;type;GreatFind;persistent;true] The pawns on the kingside are too vulnerable.} Rg8 {This loses by force, but it's difficult to make recommendations.} (27... Bxa4 {is the computer suggestion and probably the best practical chance, but after} 28. Ra1 $1 {[%c_effect a1;square;a1;type;GreatFind;persistent;true] Black is tied up.} (28. Bxg5 $2 {[%c_effect g5;square;g5;type;Mistake;persistent;true] is wrong:} Bxc2 $1 {[%c_effect c2;square;c2;type;GreatFind;persistent;true]} 29. Kxc2 Qa2+ {with perpetual check.})) 28. Nxf4 $1 {[%c_effect f4;square;f4;type;GreatFind;persistent;true]} Rxf6 $1 {[%c_effect f6;square;f6;type;GreatFind;persistent;true] Rapport is up to the challenge and fights with great resilience.} (28... Nxf4 29. Qxf4 {29.Rxg5 or 29.Bxg5 are also winning.} (29. Rxg5 Rxg5 30. Bxg5 Rxh5 31. Rxh5 Nxh5 32. Qxh5 Be6 33. f4 {Black cannot hold the position for long.}) 29... gxf4 30. Rxg8+ Be8 (30... Kc7 31. Bd8+) 31. Rxe8+ Kd7 32. Re7+ Kc6 33. Rxf7 {with an easy win, since the king is too exposed and White has two dangerous passed pawns.}) 29. exf6 Nxf4 30. h6 $6 {[%c_effect h6;square;h6;type;Inaccuracy;persistent;true] I was surprised by this move, since I expected Carlsen to take on f4. But things are not so easy as I initially thought.} (30. Qxf4 $1 {[%c_effect f4;square;f4;type;GreatFind;persistent;true]} gxf4 31. Rxg8+ Kc7 {Now White must be very accurate.} 32. Rg7 $1 {[%c_effect g7;square;g7;type;GreatFind;persistent;true]} (32. Rf8 {is also good.}) (32. h6 $2 {[%c_effect h6;square;h6;type;Mistake;persistent;true] is tempting... and wrong:} Bf5 33. h7 $2 {[%c_effect h7;square;h7;type;Mistake;persistent;true] Now White even loses $1} (33. Rh5 {is enough for a draw.}) 33... Qxa4 $1 {[%c_effect a4;square;a4;type;GreatFind;persistent;true] Black begins some surprising counterplay and wins the game.} (33... Bxh7 $2 {[%c_effect h7;square;h7;type;Mistake;persistent;true]} 34. Rxh7 {with an easy win.}) 34. h8=Q Qxc2+ 35. Ke1 f3 {with inevitable mate.}) 32... Qxa4 (32... Bf5 33. Rxf7+ Kc6 34. Rc1 $1 {[%c_effect c1;square;c1;type;GreatFind;persistent;true] The c2-pawn is protected and the h- and f-pawns are decisive, for instance:} Qd8 35. h6 Qe8 36. h7) 33. h6 Bf5 34. Rxf7+ Kb6 35. Rc1 Qe8 36. h7 $1 {[%c_effect h7;square;h7;type;GreatFind;persistent;true] with a decisive advantage for White.}) 30... Ne6 $1 {[%c_effect e6;square;e6;type;GreatFind;persistent;true]} 31. h7 Rh8 32. Qe3 $1 {[%c_effect e3;square;e3;type;GreatFind;persistent;true] Preparing the sac on g5.} Qd8 $1 {[%c_effect d8;square;d8;type;GreatFind;persistent;true]} 33. Rxg5 $1 {[%c_effect g5;square;g5;type;GreatFind;persistent;true]} Nxg5 34. Qxg5 {The queen goes to g7 and Black is paralyzed, but it remains to be seen how White can completely break the resistance.} Kc7 35. Qg7 Be6 36. Re1 $2 {[%c_effect e1;square;e1;type;Mistake;persistent;true] This move surprisingly lets the win slip.} (36. Rh5 $1 {[%c_effect h5;square;h5;type;GreatFind;persistent;true] was the right path for the rook, with the same plan as in the game.}) 36... Kb6 $2 {[%c_effect b6;square;b6;type;Mistake;persistent;true]} (36... Bf5 $1 {[%c_effect f5;square;f5;type;GreatFind;persistent;true] is the right move:} 37. Qxf7+ Kc6 {Now White is the one who needs to play carefully.} 38. Rg1 Rxh7 39. Rg7 {The game ends in a draw in many possible ways.} Rxg7 (39... Qb8 40. Kc1 $1 {[%c_effect c1;square;c1;type;GreatFind;persistent;true]} Qf4+ 41. Kb2 Rxg7 42. fxg7 Qxf2 43. Qe8+ {with perpetual check.}) 40. fxg7 (40. Qxg7 {is also a draw:} Qd6 41. f7 Qf4+ 42. Ke1 Qe4+ 43. Kf1 Qh1+ {with perpetual check again.}) 40... Qg5+ 41. Ke2 Bh7 42. Qe6+ {with a draw.}) 37. Re5 $1 {[%c_effect e5;square;e5;type;GreatFind;persistent;true]} Qc8 38. f4 {Preparing f4-f5 at the right moment.} a6 39. Kc1 $1 {[%c_effect c1;square;c1;type;GreatFind;persistent;true] It's important to hide the king first.} (39. f5 $2 {[%c_effect f5;square;f5;type;Mistake;persistent;true]} Bxf5 40. Rxf5 Qxf5 41. Qxh8 Qf4+ {with perpetual check.}) 39... Ka7 40. f5 Bd7 (40... Bxf5 41. Rxf5 Qxf5 42. Qxh8 {Now there is a pawn shelter protecting the king.}) 41. a5 $1 {[%c_effect a5;square;a5;type;GreatFind;persistent;true]} Qf8 42. Kb2 Qc8 43. Rxd5 {White starts collecting the pawns.} Bc6 44. Re5 Bd7 45. Qxf7 Bxf5 46. Rc5 Qe6 47. Qxe6 Bxe6 48. Rc7 Bf5 49. Rg7 $1 {[%c_effect g7;square;g7;type;GreatFind;persistent;true] Even the last moves are pretty.} Bxh7 50. f7 {Preparing Rxh7. If the bishop moves, White can play Rg8. A study-like position.} Bd3 51. cxd3 {A marvelous game.} 1-0